{"text_format":"1","workbook":"xlsx","n_sheets":48,"sheets":["modReestr","Инструкция","Лог обновления","Титульный","Территории","Дифференциация","Доступ к товарам и услугам","Публикация в других источниках","Сведения об изменении","Комментарии","Проверка","AllSheetsInThisWorkbook","TEHSHEET","modCheckCyan","modSettings","modfrmSetForPrint","modInfo","et_union_hor","et_union_vert","modList00","modList01","modList02","modList03","modList07","modList09","modHTTP","modfrmRegion","MR_LIST","REESTR_VT","REESTR_VED","modfrmReestrObj","DataOrg","modProv","modfrmReestr","modUpdTemplMain","REESTR_ORG","modClassifierValidate","modHyp","modfrmDateChoose","modComm","modThisWorkbook","REESTR_MO","modfrmReestrMR","modServiceModule","modfrmCheckUpdates","REESTR_DS","REESTR_CHS","REESTR_LINK"],"not_rendered":{"charts":0,"images":22,"macros":1,"external_links":0,"defined_names":214,"comments":0,"pivot_tables":0},"unopened":[],"bounds":{"document_bytes":16777216,"sheet_cells":100000,"rows_first":2000,"rows_last":500,"rows_between":2000,"halvings":0,"cell_chars":16384,"cell_head_chars":4096},"cells_cut":0,"cells_raw":0,"read":"whole","date_system":"1900"}

{"sheet":"modReestr","index":0,"n_rows":0,"n_cols":0,"rows_kept":0,"cut":false,"hidden":true,"merged":[]}

{"sheet":"Инструкция","index":1,"n_rows":90,"n_cols":27,"rows_kept":90,"cut":false,"hidden":false,"merged":[[1,1,1,6],[2,1,2,2],[4,1,4,24],[6,4,18,23],[20,5,20,12],[20,15,20,23],[58,7,58,23],[59,4,59,6],[71,5,71,23],[57,4,57,23],[21,15,21,23],[34,4,38,23],[39,4,39,23],[40,4,44,23],[45,4,56,23],[22,15,22,22],[21,5,21,12],[58,4,58,6],[60,7,60,23],[69,4,69,23],[70,4,70,23],[72,5,72,23],[83,4,83,23],[81,4,81,23],[77,4,77,23],[82,4,82,23],[87,5,87,18],[89,5,89,23],[73,5,73,23],[74,4,74,23],[75,4,75,23],[76,4,76,23],[80,4,80,23],[85,4,85,23],[79,4,79,23],[78,4,78,23]]}
[null,null,null,null,null,null,null,null,null,null,null,null,null,null,null,null,null,null,null,null,null,null,null,null,null,null," (требуется обновление)"]
[null,{"$f":"\"Код отчёта: \" & GetCode()","v":"Код отчёта: JKH.OPEN.INFO.QUARTER.WARM.570"}]
[null,{"$f":"\"Версия \" & GetVersion()","v":"Версия 1.1.1"}]
[]
[null,"Информация о наличии (отсутствии) технической возможности подключения (технологического присоединения) к системе теплоснабжения, а также о ходе реализации заявок на подключение (технологическое присоединение) к системе теплоснабжения"]
[]
[null,null,null,null,"• На рабочем месте должен быть установлен MS Office 2003 SP3, 2007 SP3, 2010, 2013 с полной версией MS Excel                                                                                                                                • Для корректной работы отчета необходим доступ к сети \"Интернет\"                                                         \n                                                                                                                                                          • Макросы во время работы должны быть включены (!)\n• Для корректной работы отчёта требуется выбрать низкий уровень безопасности\n(В меню MS Excel 2003: Сервис | Макрос | Безопасность | выбрать пункт «Низкая безопасность» | OK)\n(В меню MS Excel 2007/2010/2013: Параметры Excel | Центр управления безопасностью | Параметры центра управления безопасностью | Параметры макросов | Включить все макросы | ОК)\n\n• Если Вы работаете в табличном процессоре MS Excel 2007 и выше, то можете использовать для работы формат XLSB (Двоичная книга Excel). При работе в формате XLSB заметно быстрее происходит сохранение файла, а также уменьшается размер по сравнению с форматами XLS и XLSM\n\n• Не рекомендуется снимать защиту с листов и каким-либо образом модифицировать защищаемые формулы и расчётные поля, в противном случае, отчёт будет отклонён системой\n• При сохранении не следует выбирать формат XLSX (Книга Excel), так как в указанном формате макросы, необходимые для работы отчёта, безвозвратно удаляются"]
[]
[]
[]
[]
[]
[]
[]
[]
[]
[]
[]
[]
[]
[null,null,null,null,"A"," - не обязательные для заполнения",null,null,null,null,null,null,null,null,"A"," - с формулами и константами"]
[null,null,null,null,"A"," - обязательные для заполнения",null,null,null,null,null,null,null,null,"A"," - с выбором значений до двойному клику,"]
[null,null,null,null,null,null,null,null,null,null,null,null,null,null,null,"либо с возможностью выбора даты из календаря или ручного ввода"]
[]
[]
[]
[]
[]
[]
[]
[]
[]
[]
[]
[null,null,null,null,"Если в предложенном Вам списке необходимая организация, МР/МО отсутствуют, обновите реестры с помощью кнопок\n\nВ результате синхронизации с базой данных список организаций (МР/МО) будет заменён актуальным (механизм синхронизации требует подключения к сети Интернет и основан на использовании протокола HTTPS (TCP порт 443))\n\nЕсли после обновления Вам не удалось найти необходимую организацию в списке, обратитесь к ответственному за поддержание реестра Вашего региона."]
[]
[]
[]
[]
[]
[]
[]
[]
[]
[]
[null,null,null,null,"• При сохранении шаблона осуществляется проверка корректности данных, в том числе на наличие значений в ячейках, обязательных для заполнения\n\n• Если какая-то ячейка не удовлетворяет условию проверки, на лист «Проверка» добавляется гиперссылка на данную ячейку и указывается причина ошибки\n\n• В колонке «Статус» для каждого сообщения возможны 2 значения: ошибка и предупреждение\n\n• При наличии сообщений со статусом «Ошибка» шаблон будет отклонён системой и не будет загружен в хранилище данных, сообщения со статусом «Предупреждение» носят информационный характер, и такой шаблон будет принят системой"]
[]
[]
[]
[]
[]
[]
[]
[]
[]
[]
[]
[null,null,null,null,"Обратиться в службу технической поддержки"]
[]
[]
[]
[]
[]
[]
[]
[]
[]
[]
[]
[null,null,null,null,"Законодательная основа шаблона"]
[null,null,null,null,"Данный шаблон разработан в соответствии с:"]
[null,null,null,null," • ","Постановлением Правительства РФ от 05.07.2013 N 570 \"О стандартах раскрытия информации теплоснабжающими организациями, теплосетевыми организациями и органами регулирования\""]
[]
[]
[null,null,null,null,"Принципы работы с шаблоном"]
[null,null,null,null,"  Перед началом работы с шаблоном Вам необходимо нажать кнопку \"Приступить к заполнению\", после чего на форме выбора выбрать из выпадающего списка нужный субъект РФ. После выбора субъекта РФ в шаблоне отобразятся листы для заполнения."]
[null,null,null,null,"  На листе «Титульный» нужно заполнить все ячейки голубого цвета."]
[null,null,null,null,"  На листе «Уведомление» «Адрес сайта в сети интернет» вводите, не нарушая цвет ячейки /если копируете гиперссылку из браузера, то выполните двойной щелчок левой кнопки мыши по ячейке и только после этого можете вставить скопированный элемент/.\n"]
[null,null,null,null,"  При вводе даты на расчетных листах необходимо выбрать дату из календаря (иконка справа от выбранной ячейки), либо ввести дату непосредственно в ячейку в формате - 'ДД.ММ.ГГГГ'."]
[null,null,null,null,"  Если какой-либо из показателей на расчетных листах для Вашей организации отсутствует, введите в поле, обязательное для заполнение, «0» (для числовых показателей) и «-» (для текстовых).\n"]
[null,null,null,null,"  Внимательно следите за информационными сообщениями на расчетных листах."]
[null,null,null,null,"  Все необходимые комментарии по всем формам Вы можете отразить на листе «Комментарии»."]
[null,null,null,null,"Инструкция по загрузке сопроводительных материалов с помощью \"ЕИАС Мониторинг\""]
[null,null,null,null,"Получить более полную Инструкцию для данного шаблона"]
[]
[null,null,null,null,"При наличии подключения к Интернет, можно автоматически проверять наличие доступных обновлений. Выберите способ оповещения о наличии обновлений для отчёта:"]
[]
[null,null,null,null,null,"проверять доступные обновления (рекомендуется)",null,null,null,null,null,null,null,null,null,null,null,null,null,null,null,null,null,null,null,null,"y"]
[]
[null,null,null,null,null,"никогда не проверять наличие обновлений (не рекомендуется)"]

{"sheet":"Лог обновления","index":2,"n_rows":13,"n_cols":3,"rows_kept":13,"cut":false,"hidden":true,"merged":[]}
["Дата/Время","Сообщение","Статус"]
["2018-08-01T15:50:43","Проверка доступных обновлений...","Информация"]
["2018-08-01T15:50:44","Нет доступных обновлений для отчёта с кодом JKH.OPEN.INFO.QUARTER.WARM.570!","Информация"]
["2018-08-01T15:50:54","Проверка доступных обновлений...","Информация"]
["2018-08-01T15:50:55","Нет доступных обновлений для отчёта с кодом JKH.OPEN.INFO.QUARTER.WARM.570!","Информация"]
["2018-08-01T15:53:43","Проверка доступных обновлений...","Информация"]
["2018-08-01T15:53:44","Нет доступных обновлений для отчёта с кодом JKH.OPEN.INFO.QUARTER.WARM.570!","Информация"]
["2018-08-01T16:16:31","Проверка доступных обновлений...","Информация"]
["2018-08-01T16:16:32","Нет доступных обновлений для отчёта с кодом JKH.OPEN.INFO.QUARTER.WARM.570!","Информация"]
["2018-08-02T10:16:13","Проверка доступных обновлений...","Информация"]
["2018-08-02T10:16:14","Нет доступных обновлений для отчёта с кодом JKH.OPEN.INFO.QUARTER.WARM.570!","Информация"]
["2018-08-02T11:22:10","Проверка доступных обновлений...","Информация"]
["2018-08-02T11:22:11","Нет доступных обновлений для отчёта с кодом JKH.OPEN.INFO.QUARTER.WARM.570!","Информация"]

{"sheet":"Титульный","index":3,"n_rows":41,"n_cols":6,"rows_kept":41,"cut":false,"hidden":false,"merged":[[4,4,4,5]]}
[null,null,null,null,null,28979613]
[]
[]
[null,null,null,null,null,{"$f":"version","v":"Версия 1.1.1"}]
[null,null,null,null,"Информация о наличии (отсутствии) технической возможности подключения (технологического присоединения) к системе теплоснабжения, а также о ходе реализации заявок на подключение (технологическое присоединение) к системе теплоснабжения"]
[]
[null,null,null,null,"Субъект РФ","Ленинградская область"]
[]
[null,null,null,null,"Публикация2","На сайте регулирующего органа"]
[]
[null,null,null,null,"По решению организации информация раскрыта на ее официальном сайте в сети Интернет?","да"]
[]
[null,null,null,null,"Тип отчета","Первичное раскрытие информации"]
[null,null,null,null,"Дата внесения изменений в информацию, подлежащую раскрытию"]
[]
[null,null,null,null,"Применяется дифференциация тарифа по централизованным системам теплоснабжения?"]
[null,null,null,null,"Информация по скольким централизованным системам теплоснабжения будет заполнена в шаблоне?"]
[]
[null,null,null,null,null,"Отчетный период"]
[null,null,2018,null,"Год",2018]
[null,null,"I квартал",null,"Квартал","I квартал"]
[]
[null,null,null,null,"Является ли данное юридическое лицо подразделением (филиалом) другой организации"]
[]
[]
[null,null,null,null,"Наименование организации (филиала)","ООО \"ЭнергоИнвест\""]
[]
[]
[null,null,null,null,"Наименование головной организации"]
[null,null,null,null,"ИНН","7841378040"]
[null,null,null,null,"КПП","780201001"]
[null,null,null,null,"Вид деятельности"]
[]
[null,null,null,null,"Почтовый адрес регулируемой организации","194014"]
[null,null,null,null,"Фамилия, имя, отчество руководителя","Кудрявцев Александр Анатольевич"]
[]
[null,null,null,null,null,"Ответственный за составление формы"]
[null,null,null,null,"Фамилия, имя, отчество","Савельева Ольга Владимировна"]
[null,null,null,null,"Должность","специалист организации производства"]
[null,null,null,null,"(код) номер телефона","(812)336-86-30"]
[null,null,null,null,"e-mail","office@energoinvest.info"]

{"sheet":"Территории","index":4,"n_rows":16,"n_cols":17,"rows_kept":16,"cut":false,"hidden":false,"merged":[[12,3,14,3],[12,4,14,4],[12,5,13,5],[12,6,13,6],[12,7,13,7],[8,8,8,11],[9,8,9,9],[8,5,8,7],[10,8,10,9],[8,3,8,4],[10,5,10,6],[3,3,3,7],[4,3,4,7],[6,3,6,4],[6,5,6,6],[9,5,9,6]]}
[]
[]
[]
[null,null,null,"Перечень муниципальных районов и муниципальных образований (территорий оказания услуг)"]
[null,null,null,{"$f":"IF(org=0,\"Не определено\",org)","v":"ООО \"ЭнергоИнвест\""}]
[]
[null,null,null,null,null,"да"]
[]
[null,null,null,"Территория оказания услуг",null,"Муниципальный район",null,null,"Муниципальное образование"]
[null,null,null,"№ п/п","Наименование","№ п/п",null,"Наименование","№ п/п",null,"Наименование","ОКТМО"]
[null,null,null,"1","2","3",null,"4","5",null,"6","7"]
[null,null,null,0,null,"",null,null,""]
[null,"auto",null,1,"Кировский муниципальный район, Мгинское (41625154);","",1,"Кировский муниципальный район","","1","Мгинское","41625154",null,null,null,null,"Кировский муниципальный район, Мгинское (41625154);"]
[null,null,null,null,null,null,null,null,"",null,""]
[null,null,null,null,null,"",null,"",""]
[null,"man",null,null,"","",null,null,"",null,null,null,null,null,null,null,"Добавить территорию оказания услуг"]

{"sheet":"Дифференциация","index":5,"n_rows":26,"n_cols":26,"rows_kept":26,"cut":false,"hidden":false,"merged":[[21,6,22,6],[21,7,22,7],[21,8,22,8],[21,9,22,9],[17,5,17,8],[17,9,17,12],[19,6,19,7],[19,10,19,11],[18,10,18,11],[24,2,25,2],[11,1,11,3],[12,1,12,3],[21,4,23,4],[21,5,23,5],[21,3,23,3],[17,0,18,0],[17,3,17,4],[3,3,3,8],[4,3,4,8],[7,4,7,5],[8,1,8,3],[5,0,6,5],[7,1,7,3],[8,4,8,5],[9,1,9,3],[9,4,9,5],[13,1,13,3],[10,4,10,5],[10,1,10,3],[18,6,18,7]]}
[]
[]
[]
[null,null,null,"Информация о наличии (отсутствии) технической возможности подключения (технологического присоединения) к системе теплоснабжения, а также о ходе реализации заявок на подключение (технологическое присоединение) к системе теплоснабжения"]
[null,null,null,{"$f":"IF(org=0,\"Не определено\",org)","v":"ООО \"ЭнергоИнвест\""}]
[]
[]
[]
[]
[]
[]
[]
[]
[]
[]
[]
[]
[null,null,null,"Вид деятельности",null,"Дифференциация по территориям оказания услуг",null,null,null,"Дифференциация по системам теплоснабжения"]
[null,null,null,"№ п/п","Наименование","да/нет","№ п/п",null,"Наименование","да/нет","№ п/п",null,"Наименование"]
[null,null,null,"1","2","3","4",null,"5","6","7",null,"8"]
[]
[null,null,null,"1","Оказание услуг по передаче тепловой энергии, теплоносителя","нет",null,1,null,"нет","","1","",null,null,null,null,null,null,null,null,null,null,64233354,"a",1705000]
[null,null,null,null,null,null,null,null,null,null,"",null,""]
[null,null,null,null,null,null,null,null,"",null,""]
[null,null,null,null,"",null,null,null,null,null,""]
[null,null,null,null,null,null,null,null,null,null,""]

{"sheet":"Доступ к товарам и услугам","index":6,"n_rows":15,"n_cols":10,"rows_kept":15,"cut":false,"hidden":false,"merged":[[6,8,6,9],[3,3,3,9],[12,8,12,9],[4,3,4,9],[12,3,14,3],[12,4,14,4],[12,5,14,5],[12,6,13,6],[12,7,13,7],[6,3,7,3],[6,4,7,4],[6,5,7,5],[6,6,7,6],[6,7,7,7]]}
[null,null,null,null,null,null,null,null,null,4]
[]
[]
[null,null,null,"Информация о наличии (отсутствии) технической возможности подключения (технологического присоединения) к системе теплоснабжения, а также о ходе реализации заявок на подключение (технологическое присоединение) к системе теплоснабжения"]
[null,null,null,{"$f":"IF(org=0,\"Не определено\",org)","v":"ООО \"ЭнергоИнвест\""}]
[]
[null,null,null,"№ п/п","Информация, подлежащая раскрытию","Единица измерения","О","№ п/п","Вид деятельности:\r\n  - Оказание услуг по передаче тепловой энергии, теплоносителя\r\n\r\nТерритория оказания услуг:\r\n  - без дифференциации\r\n\r\nСистема теплоснабжения:\r\n  - без дифференциации"]
[null,null,null,null,null,null,null,null,"Показатель","Комментарий"]
[null,null,null,"1","2","3",null,null,{"$f":"J1&\".1\"","v":"4.1"},{"$f":"J1&\".2\"","v":"4.2"}]
[null,null,null,1,"Количество поданных заявок","шт",null,null,0]
[null,null,null,2,"Количество исполненных заявок","шт",null,null,0]
[null,null,null,3,"Количество заявок с решением об отказе в подключении","шт",null,null,0]
[null,null,null,4,"Резерв мощности системы теплоснабжения в течение квартала","Гкал/час",null,1,"Открытая система теплоснабжения (горячего водоснабжения)"]
[null,null,null,null,null,null,null,null,0]
[null,null,null,null,null,null,null,null,"Добавить систему теплоснабжения"]

{"sheet":"Публикация в других источниках","index":7,"n_rows":12,"n_cols":8,"rows_kept":12,"cut":false,"hidden":false,"merged":[[7,3,8,3],[7,4,8,4],[7,5,7,7],[4,3,4,4],[5,3,5,4]]}
[]
[]
[]
[]
[null,null,null,"Публикация в других источниках\n(публикация информации по решению организации на ее официальном сайте в сети \"Интернет\")"]
[null,null,null,{"$f":"IF(org=0,\"Не определено\",org)","v":"ООО \"ЭнергоИнвест\""}]
[]
[null,null,null,"№ п/п","Описание опубликованной информации","Официальный сайт организации в сети \"Интернет\""]
[null,null,null,null,null,"Дата\nразмещения информации","Адрес официальной страницы сайта\nв сети \"Интернет\", на котором размещена информация","Ссылка на снимок экрана\nофициальной страницы сайта в сети \"Интернет\", на котором размещена информация"]
[null,null,null,"1","2","3","4","5"]
[null,null,null,1,"Информация о наличии (отсутствии) технической возможности подключения (технологического присоединения) к системе теплоснабжения, а также о ходе реализации заявок на подключение (технологическое присоединение) к системе теплоснабжения (п. 22 Постановления Правительства РФ от 05.07.2013 N 570 \"О стандартах раскрытия информации теплоснабжающими организациями, теплосетевыми организациями и органами регулирования\")","30.04.2018","http://energoinvest.info/abonentam/raskrytie-informacii/"]
[null,null,null,null,"Добавить опубликованную информацию"]

{"sheet":"Сведения об изменении","index":8,"n_rows":14,"n_cols":5,"rows_kept":14,"cut":false,"hidden":true,"merged":[[6,3,6,4],[7,3,7,4]]}
[]
[]
[]
[]
[]
[]
[null,null,null,"Сведения об изменениях в первоначально опубликованной информации"]
[null,null,null,{"$f":"IF(org=0,\"Не определено\",org)","v":"ООО \"ЭнергоИнвест\""}]
[]
[null,null,null,"№ п/п","Сведения"]
[null,null,null,"1","2"]
[null,null,null,0]
[null,null,null,1]
[null,null,null,null,"Добавить строку"]

{"sheet":"Комментарии","index":9,"n_rows":13,"n_cols":5,"rows_kept":13,"cut":false,"hidden":false,"merged":[[6,3,6,4],[7,3,7,4]]}
[]
[]
[]
[]
[]
[]
[null,null,null,"Комментарии"]
[null,null,null,{"$f":"IF(org=0,\"Не определено\",org)","v":"ООО \"ЭнергоИнвест\""}]
[]
[null,null,null,"№ п/п","Комментарий"]
[null,null,null,"1","2"]
[null,null,null,0]
[null,null,null,null,"Добавить"]

{"sheet":"Проверка","index":10,"n_rows":4,"n_cols":5,"rows_kept":4,"cut":false,"hidden":false,"merged":[[1,1,1,4]]}
[]
[null,"Результат проверки"]
[]
[null,"Ссылка1","Ссылка2","Причина","Статус"]

{"sheet":"AllSheetsInThisWorkbook","index":11,"n_rows":39,"n_cols":2,"rows_kept":39,"cut":false,"hidden":true,"merged":[]}
["Расчетные листы","Скрытые листы"]
["Инструкция","modReestr"]
["Лог обновления","AllSheetsInThisWorkbook"]
["Титульный","TEHSHEET"]
["Территории","modCheckCyan"]
["Дифференциация","modSettings"]
["Доступ к товарам и услугам","modfrmSetForPrint"]
["Публикация в других источниках","modInfo"]
["Сведения об изменении","et_union_hor"]
["Комментарии","et_union_vert"]
["Проверка","modList00"]
[null,"modList01"]
[null,"modList02"]
[null,"modList03"]
[null,"modList07"]
[null,"modList09"]
[null,"modHTTP"]
[null,"modfrmRegion"]
[null,"MR_LIST"]
[null,"REESTR_VT"]
[null,"REESTR_VED"]
[null,"modfrmReestrObj"]
[null,"DataOrg"]
[null,"modProv"]
[null,"modfrmReestr"]
[null,"modUpdTemplMain"]
[null,"REESTR_ORG"]
[null,"modClassifierValidate"]
[null,"modHyp"]
[null,"modfrmDateChoose"]
[null,"modComm"]
[null,"modThisWorkbook"]
[null,"REESTR_MO"]
[null,"modfrmReestrMR"]
[null,"modServiceModule"]
[null,"modfrmCheckUpdates"]
[null,"REESTR_DS"]
[null,"REESTR_CHS"]
[null,"REESTR_LINK"]

{"sheet":"TEHSHEET","index":12,"n_rows":43,"n_cols":14,"rows_kept":43,"cut":false,"hidden":true,"merged":[]}
["NSRF",null,"year_list","logical","Месяц\n(MONTH)","Квартал\n(QUARTER)","Месяц\n(kind_of_publication)","Единица измерения объема оказываемых услуг ГВС\n/kind_of_unit_GVS/","Вид тарифа\n/list_of_tariff/","mr_id","версия шаблона\n (DocProp_Version)","0.1","Тип отчета\ndata_type","Print_form"]
["Алтайский край",null,2013,"да","январь","I квартал","На официальном сайте организации","тыс.куб.м/сутки",null,52,"код шаблона\n(DocProp_TemplateCode)","JKH.OPEN.INFO.QUARTER.WARM.570","Первичное раскрытие информации","Форма 1.1"]
["Амурская область",null,2014,"нет","февраль","II квартал","На сайте регулирующего органа","Гкал/час","Без дифференциации","sys_id","сфера\n(TSphere)","ТС","Корректировка ранее раскрытой информации","Форма 1.2"]
["Астраханская область",null,2015,null,"март","III квартал",null,"куб.м/час",null,104,"сфера(латиница)\n(TSphere_trans)","WARM","Изменения в раскрытой ранее информации","Форма 1.3"]
["Белгородская область",null,2016,null,"апрель","IV квартал",null,null,null,null,"сфера расширено\n(TSphere_full)",null,null,"Форма 1.4"]
["Волгоградская область",null,2017,null,"май",null,null,null,null,null,null,null,null,"Форма 1.5"]
["Еврейская автономная область",null,null,null,"июнь",null,null,null,null,null,null,null,null,"Форма 1.6"]
["Кабардино-Балкарская республика",null,null,null,"июль",null,null,null,null,null,"true",null,null,"Форма 1.7"]
["Калининградская область",null,null,null,"август",null,null,null,null,null,null,null,null,"Форма 1.8"]
["Калужская область",null,null,null,"сентябрь",null,null,null,null,null,null,null,null,"Форма 1.9"]
["Кемеровская область",null,null,null,"октябрь",null,null,null,null,null,"https://tarif.lenreg.ru/procwsxls/",null,null,"Форма 1.10"]
["Костромская область",null,null,null,"ноябрь",null,null,null,null,null,null,null,null,"Форма 1.11"]
["Краснодарский край",null,null,null,"декабрь",null,null,null,null,null,null,null,null,"Форма 1.12"]
["Красноярский край",null,null,null,null,null,null,null,null,null,null,null,null,"Форма 2.1"]
["Ленинградская область",null,null,null,null,null,null,null,null,null,null,null,null,"Форма 2.2"]
["Нижегородская область",null,null,null,null,null,"Текущая дата",null,null,null,null,null,null,"Форма 2.3"]
["Новосибирская область",null,"Организация",{"$f":"IF(f_year = \"\",\"\", IF(LEN(f_quart)=0,\"\",IF(f_quart=\"I квартал\", \"01.01.\"&f_year,IF(f_quart=\"II квартал\",\"01.04.\"&f_year,(IF(f_quart=\"III квартал\", \"01.07.\"&f_year,\"01.10.\"&f_year)))) ))","v":"01.01.2018"},{"$f":"IF(f_year = \"\",\"\", IF(LEN(f_quart)=0,\"\",IF(f_quart=\"I квартал\", \"31.03.\"& f_year,IF(f_quart=\"II квартал\",\"30.06.\"& f_year,(IF(f_quart=\"III квартал\", \"30.09.\"& f_year,\"31.12.\"& f_year)))) ))","v":"31.03.2018"},null,"02.08.2018 16:22:15",null,null,null,null,null,null,"Форма 2.4"]
["Омская область",null,null,null,null,null,null,null,null,null,null,null,null,"Форма 2.5"]
["Оренбургская область",null,null,null,null,null,"Признак изменения данных на листе Доступ к товарам и услугам",null,null,null,null,null,null,"Форма 2.6"]
["Пермский край",null,"Виды деятельности",null,null,null,false,null,null,null,null,null,null,"Форма 2.7"]
["Республика Башкортостан",null,null,null,null,null,null,null,null,null,null,null,null,"Форма 2.8"]
["Республика Бурятия",null,null,null,null,null,null,null,null,null,null,null,null,"Форма 2.9"]
["Республика Дагестан",null,null,null,null,null,null,null,null,null,null,null,null,"Форма 2.10"]
["Республика Карелия",null,null,null,null,null,null,null,null,null,null,null,null,"Форма 2.11"]
["Республика Крым",null,null,null,null,null,null,null,null,null,null,null,null,"Форма 2.12"]
["Республика Татарстан",null,null,null,null,null,null,null,null,null,null,null,null,"Форма 2.13"]
["Рязанская область",null,null,null,null,null,null,null,null,null,null,null,null,"Форма 2.14"]
["Самарская область",null,null,null,null,null,null,null,null,null,null,null,null,"Форма 3.1"]
["Ставропольский край",null,null,null,null,null,null,null,null,null,null,null,null,"Форма 3.2"]
["Тверская область",null,null,null,null,null,null,null,null,null,null,null,null,"Форма 3.3"]
["Томская область",null,null,null,null,null,null,null,null,null,null,null,null,"Форма 3.4"]
["Тульская область",null,null,null,null,null,null,null,null,null,null,null,null,"Форма 3.5"]
["Тюменская область",null,null,null,null,null,null,null,null,null,null,null,null,"Форма 3.6"]
["Удмуртская республика",null,null,null,null,null,null,null,null,null,null,null,null,"Форма 3.7"]
["Ульяновская область",null,null,null,null,null,null,null,null,null,null,null,null,"Форма 3.8"]
["Хабаровский край",null,null,null,null,null,null,null,null,null,null,null,null,"Форма 3.9"]
["Ханты-Мансийский автономный округ",null,null,null,null,null,null,null,null,null,null,null,null,"Форма 3.10"]
["Чувашская республика",null,null,null,null,null,null,null,null,null,null,null,null,"Форма 3.11"]
["г.Севастополь",null,null,null,null,null,null,null,null,null,null,null,null,"Форма 3.12"]
[null,null,null,null,null,null,null,null,null,null,null,null,null,"Форма 4.1"]
[null,null,null,null,null,null,null,null,null,null,null,null,null,"Форма 4.2"]
[null,null,null,null,null,null,null,null,null,null,null,null,null,"Форма 4.3"]
[null,null,null,null,null,null,null,null,null,null,null,null,null,"Форма 4.4"]

{"sheet":"modCheckCyan","index":13,"n_rows":26,"n_cols":1,"rows_kept":26,"cut":false,"hidden":true,"merged":[]}
[]
[{"$f":"IF(Территории!$E$13=\"\",1,0)","v":0}]
[{"$f":"IF(Территории!$H$13=\"\",1,0)","v":0}]
[{"$f":"IF(Территории!$K$13=\"\",1,0)","v":0}]
[{"$f":"IF('Доступ к товарам и услугам'!$I$10=\"\",1,0)","v":0}]
[{"$f":"IF('Доступ к товарам и услугам'!$I$10=\"Введите наименование системы теплоснабжения\",1,0)","v":0}]
[{"$f":"IF('Доступ к товарам и услугам'!$I$11=\"\",1,0)","v":0}]
[{"$f":"IF('Доступ к товарам и услугам'!$I$11=\"Введите наименование системы теплоснабжения\",1,0)","v":0}]
[{"$f":"IF('Доступ к товарам и услугам'!$I$12=\"\",1,0)","v":0}]
[{"$f":"IF('Доступ к товарам и услугам'!$I$12=\"Введите наименование системы теплоснабжения\",1,0)","v":0}]
[{"$f":"IF('Сведения об изменении'!$E$13=\"\",1,0)","v":1}]
[{"$f":"IF(Дифференциация!$E$22=\"\",1,0)","v":0}]
[{"$f":"IF(Дифференциация!$F$22=\"\",1,0)","v":0}]
[{"$f":"IF(Дифференциация!$J$22=\"\",1,0)","v":0}]
[{"$f":"IF('Доступ к товарам и услугам'!$I$14=\"Введите наименование системы теплоснабжения\",1,0)","v":0}]
[{"$f":"IF('Доступ к товарам и услугам'!$I$13=\"Введите наименование системы теплоснабжения\",1,0)","v":0}]
[{"$f":"IF('Доступ к товарам и услугам'!$I$14=\"\",1,0)","v":0}]
[{"$f":"IF('Доступ к товарам и услугам'!$I$14=\"Введите наименование системы теплоснабжения\",1,0)","v":0}]
[{"$f":"IF('Доступ к товарам и услугам'!$I$13=\"\",1,0)","v":0}]
[{"$f":"IF('Доступ к товарам и услугам'!$I$13=\"Введите наименование системы теплоснабжения\",1,0)","v":0}]
[{"$f":"IF('Доступ к товарам и услугам'!$I$14=\"\",1,0)","v":0}]
[{"$f":"IF('Доступ к товарам и услугам'!$I$14=\"Введите наименование системы теплоснабжения\",1,0)","v":0}]
[{"$f":"IF('Доступ к товарам и услугам'!$I$13=\"\",1,0)","v":0}]
[{"$f":"IF('Доступ к товарам и услугам'!$I$13=\"Введите наименование системы теплоснабжения\",1,0)","v":0}]
[{"$f":"IF('Публикация в других источниках'!$F$11=\"\",1,0)","v":0}]
[{"$f":"IF('Публикация в других источниках'!$G$11=\"\",1,0)","v":0}]

{"sheet":"modSettings","index":14,"n_rows":14,"n_cols":3,"rows_kept":14,"cut":false,"hidden":true,"merged":[]}
["Версия шаблона","VERS_TEMP","BASE"]
["Настройка справочника наименований тарифов (Y / N)","FLAG_NAME_OF_TARIFF","NN"]
["Функционал уведомлений о раскрытии (Y / N)","FLAG_OPEN_UVED","YY"]
["Функционал отслеживания типа отчета (Y / N)","FLAG_TYPE_OF_REP","YY"]
["Подрезание МР/МО по сфере оказания услуг (Y / N)","FLAG_MR_MO","YY"]
["Печать шаблона (Y / N)","FLAG_PRINT_TEMP","YY"]
["Печатные формы (Y / N)","FLAG_PRINT_FORM","NN"]
["Размещение в шаблоне ссылок на материалы Хранилища (Y / N)","FLAG_LINK_DOC","NN"]
["Отметка об отсутствии Интернета в МР/МО (Y / N)","FLAG_INTERNET_MR_MO","NN"]
["Отметка о сдаче бух баланса (Y / N)","FLAG_BUH_BAL","NN"]
["Отметка о доле выручки (Y / N)","FLAG_PART_OF_REV","NN"]
["Отображение данных об организации (Y / N)","FLAG_DATA_ORG","YY"]
["Флаг забора данных из шаблонов группы PRICE (Y / N)","FLAG_AUTOFILL_PRICE","NN"]
["Наличие ссылок на снимки экрана страницы сайта в сети Интернет, на которой размещена информация (Y / N)","FLAG_REF","YY"]

{"sheet":"modfrmSetForPrint","index":15,"n_rows":0,"n_cols":0,"rows_kept":0,"cut":false,"hidden":true,"merged":[]}

{"sheet":"modInfo","index":16,"n_rows":25,"n_cols":2,"rows_kept":25,"cut":false,"hidden":true,"merged":[[16,3,16,10],[10,3,10,10],[11,3,11,10],[12,3,12,10],[13,3,13,10],[14,3,14,10],[15,3,15,10]]}
[null,"Титульный"]
[7,"Шаблон предназначен для отправки в субъект РФ, на территории которого осуществляется оказание услуг"]
[1,"Шаблон предназначен для предоставления в регулирующий орган следующей информации:\n1) о наличии (отсутствии) технической возможности подключения (технологического присоединения) к системе теплоснабжения, а также о регистрации и ходе реализации заявок на подключение (технологическое присоединение) к системе теплоснабжения согласно пункту 22 Постановления Правительства РФ от 05.07.2013 N570;\n2) cведения о раскрытии соответствующей информации на официальном сайте организации в сети Интернет, подлежащие предоставлению в орган исполнительной власти субъекта Российской Федерации в области государственного регулирования цен (тарифов) согласно пункту 11 Постановления Правительства РФ от 05.07.2013 N570;\n3) cведения об изменении, подлежащие публикации, на основании требований пункта 12 Постановления Правительства РФ от 05.07.2013 N 570."]
[2,"Информация, подлежит обязательному опубликованию на официальном сайте в сети \"Интернет\" органа исполнительной власти субъекта Российской Федерации в области государственного регулирования цен (тарифов), и (или) на официальном сайте органа местного самоуправления поселения или городского округа в случае их наделения в соответствии с законом субъекта Российской Федерации полномочиями по государственному регулированию цен (тарифов), согласно пункту 3а) Постановления Правительства РФ от 05.07.2013 №570."]
[3,"Если информация публикуется только на официальном сайте в информационно-телекоммуникационной сети \"Интернет\" (далее – сети Интернет) органа исполнительной власти субъекта Российской Федерации в области государственного регулирования цен (тарифов) или на официальном сайте органа местного самоуправления поселения или городского округа в случае их наделения в соответствии с законом субъекта Российской Федерации полномочиями по государственному регулированию цен (тарифов), в поле \"По решению организации информация раскрыта на ее официальном сайте в сети Интернет?\" необходимо указать \"Нет\".\n\nЕсли же информация дополнительно публикуется на официальном сайте организации в сети Интернет, в поле \"По решению организации информация раскрыта на ее официальном сайте в сети Интернет?\" необходимо указать \"Да\"."]
[4,"По умолчанию установлено значение «Первичное раскрытие информации». Это означает, что информация раскрывается в соответствии с установленными сроком и периодичностью.\n\nВ случае, если в раскрываемой информации произошли изменения, сведения об этих изменениях подлежат опубликованию в шаблоне с типом отчета \"Изменения в раскрытой ранее информации\".\n\nВ случае, если в уже отправленном шаблоне обнаружена ошибка, исправленный шаблон необходимо отправить с типом отчета «Корректировка ранее раскрытой информации»."]
[5,"В случае, если регулируемыми организациями оказываются услуги по нескольким технологически не связанным между собой системам теплоснабжения и если в отношении указанных систем устанавливаются различные тарифы в сфере теплоснабжения, то информация раскрывается отдельно по каждой системе теплоснабжения."]
[6,"Укажите количество технологически не связанных между собой систем теплоснабжения (или их групп), в отношении которых устанавливаются различные тарифы в сфере теплоснабжения. Внимание! Одна централизованная система теплоснабжения может включать несколько систем теплоснабжения, объединенных для целей установления тарифа. Необходимо указать только количество централизованных систем теплоснабжения.\n\nВ случае, если централизованная система теплоснабжения одна, в поле \"Применяется дифференциация тарифа по централизованным системам теплоснабжения\" необходимо указать \"Нет\"."]
[null,"Публикация на прочих ресурсах"]
[null,"Вводите адрес сайта, не нарушая цвет ячейки /если копируете гиперссылку из браузера, то выполните двойной щелчок по ячейке и только после этого можете вставить скопированный элемент/\nДля редактирования указанной гиперссылки или перехода по ней выполните двойной щелчок левой клавиши мыши по ячейке"]
[null,{"$f":"IF(OR(FLAG_LINK_DOC=\"Y\",FLAG_LINK_DOC=\"NY\",FLAG_LINK_DOC=\"YY\"),\"Указывается ссылка на загруженный в Хранилище ЕИАС снимок экрана официальной страницы сайта, на котором размещена информация\",\"Указывается ссылка на загруженный в Интернет-ресурс снимок экрана официальной страницы сайта, на котором размещена информация\") & \". Для редактирования указанной гиперссылки или перехода по ней выполните двойной щелчок левой клавиши мыши по ячейке\"","v":"Указывается ссылка на загруженный в Интернет-ресурс снимок экрана официальной страницы сайта, на котором размещена информация. Для редактирования указанной гиперссылки или перехода по ней выполните двойной щелчок левой клавиши мыши по ячейке"}]
[null,"Указывается дата, по состоянию на которую информация стала доступной в сети Интернет для неограниченного круга лиц\nВыберите значение из календаря (иконка справа от выбранной ячейки), либо введите дату непосредственно в ячейку в формате - 'ДД.ММ.ГГГГ'"]
[null,"Территории"]
[1,"Наименование территории оказания услуг для целей идентификации"]
[2,"Муниципальные районы и муниципальные образования, на территории которых осуществляется оказание услуг"]
[null,"Дифференциация"]
[1,"В случае, если регулируемая организация осуществляет несколько видов деятельности, информация о которых подлежит раскрытию, информация по каждому виду деятельности раскрывается отдельно."]
[2,"Поле заполняется выбором значений из списка. Если значений для выбора нет - убедитесь, что лист \"Территории\" заполнен."]
[3,"Условное наименование системы теплоснабжения для целей идентификации."]
[4,"В случае, если регулируемыми организациями оказываются услуги по нескольким технологически не связанным между собой системам теплоснабжения и если в отношении указанных систем устанавливаются различные тарифы в сфере теплоснабжения, то информация раскрывается отдельно по каждой системе теплоснабжения."]
[null,"Доступ к товарам и услугам"]
[1,"При использовании регулируемой организацией нескольких систем теплоснабжения информация о резерве мощности таких систем публикуется в отношении каждой системы теплоснабжения."]
[null,"Сведения об изменении"]
[1,"Лист заполняется в случае, если на Титульном листе в поле \"Тип отчета\" выбрано значение «Изменения в раскрытой ранее информации»."]
[null,"Нет доступных обновлений, версия отчёта актуальна"]

{"sheet":"et_union_hor","index":17,"n_rows":46,"n_cols":26,"rows_kept":46,"cut":false,"hidden":true,"merged":[[40,6,41,6],[40,7,41,7],[40,8,41,8],[40,9,41,9],[34,8,35,8],[34,6,35,6],[34,7,35,7],[34,9,35,9],[24,7,25,7],[18,3,20,3],[18,4,20,4],[18,5,19,5],[18,6,19,6],[18,7,19,7],[34,3,36,3],[34,4,36,4],[34,5,36,5],[24,5,25,5],[24,6,25,6]]}
[]
[]
["et_List02"]
[]
[]
[]
["et_Comm"]
[]
[]
[]
["et_List03"]
[]
[]
[]
[]
[]
["et_List09_0"]
[]
[null,"auto",null,1,null,null,1,null,null,"1"]
[null,null,null,null,null,null,null,null,null,null,"Добавить МО"]
[null,null,null,null,null,null,null,"Добавить МР"]
[]
["et_List09_1"]
[]
[null,"auto",null,null,null,null,1,null,null,1]
[null,null,null,null,null,null,null,null,null,null,"Добавить МО"]
[]
["et_List09_2"]
[]
[null,"auto",null,null,null,null,null,null,null,1]
[]
[]
["et_List07_1"]
[]
[null,null,null,"1",null,"нет",null,1,null,"нет",null,"1",null,null,null,null,null,null,null,null,null,null,null,null,"a",1705000]
[null,null,null,null,null,null,null,null,null,null,null,null,"Добавить систему теплоснабжения"]
[null,null,null,null,null,null,null,null,"Добавить описание территории оказания услуг"]
[]
["et_List07_4"]
[]
[null,null,null,null,null,null,null,1,"","нет",null,"1",null,null,null,null,null,null,null,null,null,null,null,null,"a",1705000]
[null,null,null,null,null,null,null,null,null,null,null,null,"Добавить систему теплоснабжения"]
[]
["et_List07_5"]
[]
[null,null,null,null,null,null,null,null,null,null,null,"1","",null,null,null,null,null,null,null,null,null,null,null,"a",1705000]

{"sheet":"et_union_vert","index":18,"n_rows":0,"n_cols":0,"rows_kept":0,"cut":false,"hidden":true,"merged":[]}

{"sheet":"modList00","index":19,"n_rows":0,"n_cols":0,"rows_kept":0,"cut":false,"hidden":true,"merged":[]}

{"sheet":"modList01","index":20,"n_rows":14,"n_cols":10,"rows_kept":14,"cut":false,"hidden":true,"merged":[[12,8,12,9],[12,7,13,7],[12,3,14,3],[12,4,14,4],[12,5,14,5],[12,6,13,6],[3,3,3,9],[4,3,4,9],[6,3,7,3],[6,4,7,4],[6,5,7,5],[6,6,7,6],[6,8,6,9],[6,7,7,7]]}
[]
[]
[]
[]
[]
[]
[]
[null,null,null,null,null,null,null,null,"Показатель","Комментарий"]
[null,null,null,"1","2","3",null,null,{"$f":"J1&\".1\"","v":".1"},{"$f":"J1&\".2\"","v":".2"}]
[]
[]
[]
[null,null,null,null,null,null,null,null,"Введите наименование системы теплоснабжения"]
[null,null,null,null,null,null,null,null,""]

{"sheet":"modList02","index":21,"n_rows":0,"n_cols":0,"rows_kept":0,"cut":false,"hidden":true,"merged":[[7,3,8,3],[7,4,8,4],[4,3,4,4],[5,3,5,4],[7,5,7,7]]}

{"sheet":"modList03","index":22,"n_rows":0,"n_cols":0,"rows_kept":0,"cut":false,"hidden":true,"merged":[[6,3,6,4],[7,3,7,4]]}

{"sheet":"modList07","index":23,"n_rows":22,"n_cols":26,"rows_kept":22,"cut":false,"hidden":true,"merged":[[10,4,10,5],[21,5,23,5],[24,2,25,2],[17,9,17,12],[18,6,18,7],[18,10,18,11],[19,6,19,7],[19,10,19,11],[21,3,23,3],[21,4,23,4],[21,7,22,7],[21,6,22,6],[21,8,22,8],[21,9,22,9],[3,3,3,8],[4,3,4,8],[5,0,6,5],[7,1,7,3],[17,0,18,0],[17,3,17,4],[17,5,17,8],[7,4,7,5],[8,1,8,3],[8,4,8,5],[11,1,11,3],[12,1,12,3],[13,1,13,3],[9,1,9,3],[9,4,9,5],[10,1,10,3]]}
[]
[]
[]
[]
[]
[]
[]
[]
[]
[]
[]
[]
[]
[]
[]
[]
[]
[]
[]
[]
[]
[null,null,null,null,null,null,null,null,null,null,null,null,null,null,null,null,null,null,null,null,null,null,null,64279412,"a",1705000]

{"sheet":"modList09","index":24,"n_rows":16,"n_cols":4,"rows_kept":16,"cut":false,"hidden":true,"merged":[[3,3,3,7],[4,3,4,7],[6,3,6,4],[6,5,6,6],[8,3,8,4],[8,5,8,7],[8,8,8,11],[9,5,9,6],[9,8,9,9],[10,5,10,6],[10,8,10,9],[12,3,14,3],[12,4,14,4],[12,5,13,5],[12,6,13,6],[12,7,13,7]]}
[]
[]
[]
[]
[]
[]
[]
[]
[]
[]
[]
[null,null,null,0]
[null,"man"]
[]
[]
[null,"man"]

{"sheet":"modHTTP","index":25,"n_rows":0,"n_cols":0,"rows_kept":0,"cut":false,"hidden":true,"merged":[]}

{"sheet":"modfrmRegion","index":26,"n_rows":0,"n_cols":0,"rows_kept":0,"cut":false,"hidden":true,"merged":[]}

{"sheet":"MR_LIST","index":27,"n_rows":0,"n_cols":0,"rows_kept":0,"cut":false,"hidden":true,"merged":[]}

{"sheet":"REESTR_VT","index":28,"n_rows":0,"n_cols":0,"rows_kept":0,"cut":false,"hidden":true,"merged":[]}

{"sheet":"REESTR_VED","index":29,"n_rows":4,"n_cols":2,"rows_kept":4,"cut":false,"hidden":true,"merged":[]}
["ID_TARIFF_NAME","VED_NAME"]
[64233354,"Оказание услуг по передаче тепловой энергии, теплоносителя"]
[64233355,"Реализация тепловой энергии (мощности), теплоносителя"]
[64233357,"Оказание услуг по поддержанию резервной тепловой мощности"]

{"sheet":"modfrmReestrObj","index":30,"n_rows":0,"n_cols":0,"rows_kept":0,"cut":false,"hidden":true,"merged":[]}

{"sheet":"DataOrg","index":31,"n_rows":0,"n_cols":0,"rows_kept":0,"cut":false,"hidden":true,"merged":[]}

{"sheet":"modProv","index":32,"n_rows":0,"n_cols":0,"rows_kept":0,"cut":false,"hidden":true,"merged":[]}

{"sheet":"modfrmReestr","index":33,"n_rows":0,"n_cols":0,"rows_kept":0,"cut":false,"hidden":true,"merged":[]}

{"sheet":"modUpdTemplMain","index":34,"n_rows":0,"n_cols":0,"rows_kept":0,"cut":false,"hidden":true,"merged":[]}

{"sheet":"REESTR_ORG","index":35,"n_rows":166,"n_cols":10,"rows_kept":166,"cut":false,"hidden":true,"merged":[]}
["№","REGION_ID","REGION_NAME","RST_ORG_ID","ORG_NAME","INN_NAME","KPP_NAME","ORG_START_DATE","ORG_END_DATE"]
[1,"2610","Ленинградская область","26523762","АО \"Выборгтеплоэнерго\"","4704062064","470401001","09-06-2010 00:00:00",null,"WARM"]
[2,"2610","Ленинградская область","26373306","АО \"ГАТЧИНСКИЙ ККЗ\"","4719000303","470501001",null,null,"WARM"]
[3,"2610","Ленинградская область","28796046","АО \"ГТ Энерго\"","7703806647","772801001",null,null,"WARM"]
[4,"2610","Ленинградская область","26373221","АО \"Газпром газораспределение Ленинградская область\"","4700000109","472450001",null,null,"WARM"]
[5,"2610","Ленинградская область","28875608","АО \"КНАУФ ПЕТРОБОРД\"","4719011873","470501001",null,null,"WARM"]
[6,"2610","Ленинградская область","26373248","АО \"Коммунальные системы Гатчинского района\"","4705039967","470501001",null,null,"WARM"]
[7,"2610","Ленинградская область","26506539","АО \"Концерн Росэнергоатом\" филиал \"Ленинградская атомная станция\"","7721632827","472643001",null,null,"WARM"]
[8,"2610","Ленинградская область","26523683","АО \"ЛОТЭК\"","4716028445","470701001","09-06-2010 00:00:00",null,"WARM"]
[9,"2610","Ленинградская область","28942511","АО \"НПО \"Поиск\"","4703142849","470301001",null,null,"WARM"]
[10,"2610","Ленинградская область","26524292","АО \"Нева Энергия\"","7802312374","471302001","09-06-2010 00:00:00",null,"WARM"]
[11,"2610","Ленинградская область","30384822","АО \"ПТС\"","4715030160","471501001","01-09-2015 00:00:00",null,"WARM"]
[12,"2610","Ленинградская область","26373316","АО \"Промышленный комплекс \"Энергия\"","4720011010","472501001",null,null,"WARM"]
[13,"2610","Ленинградская область","26523673","АО \"РУСАЛ Бокситогорск\"","4701000013","471501001","09-06-2010 00:00:00",null,"WARM"]
[14,"2610","Ленинградская область","27250262","АО \"РЭУ\"","7714783092","602743002","31-08-2010 00:00:00",null,"WARM"]
[15,"2610","Ленинградская область","30988955","АО \"ТВСЗ\"","4715019631","471501001",null,null,"WARM"]
[16,"2610","Ленинградская область","26555650","АО \"Теплосеть Санкт-Петербурга\"","7810577007","781001001",null,null,"WARM"]
[17,"2610","Ленинградская область","30427522","АО ГУ ЖКХ ОП \"Санкт-Петербургское\"","5116000922","784245001","12-10-2015 00:00:00",null,"WARM"]
[18,"2610","Ленинградская область","28967688","Банк России (Пансионат с лечением \"Зеленый бор\" Отделения по Ленинградской области Северо-Западного  ГУ Банка России)","7702235133","471045001","29-04-2015 00:00:00",null,"WARM"]
[19,"2610","Ленинградская область","26373297","ГБОУ СПО ЛО \"Лисинский лесной колледж\"","4716001436","471601001",null,null,"WARM"]
[20,"2610","Ленинградская область","28949934","ГКУ ЛО\"ОБЪЕКТ № 58 ПРАВИТЕЛЬСТВА ЛЕНИНГРАДСКОЙ ОБЛАСТИ\"","4716038771","471601001",null,null,"WARM"]
[21,"2610","Ленинградская область","30794671","ГКУЗ ЛО \"ДПБ\"","4719005020","470501001","23-05-2016 00:00:00",null,"WARM"]
[22,"2610","Ленинградская область","26373265","ГП \"Лодейнопольское ДРСУ\"","4709001851","471101001",null,null,"WARM"]
[23,"2610","Ленинградская область","26561669","ГП \"Лужское ДРСУ\"","4710000517","471001001",null,null,"WARM"]
[24,"2610","Ленинградская область","26373237","ГП \"Рощинское дорожное ремонтно-эксплуатационное управление\"","4704050397","470401001",null,null,"WARM"]
[25,"2610","Ленинградская область","26373287","ГП \"Тихвинское ДРСУ\"","4715000447","471501001",null,null,"WARM"]
[26,"2610","Ленинградская область","26422494","ГУП \"Водоканал Санкт-Петербурга\"","7830000426","783450001",null,null,"WARM"]
[27,"2610","Ленинградская область","26361126","ГУП \"ТЭК СПб\"","7830001028","783450001",null,null,"WARM"]
[28,"2610","Ленинградская область","27168319","ГУП ЛО  \"Тепловые сети г.Тихвина\"","4715025755","471501001","20-09-2011 00:00:00",null,"WARM"]
[29,"2610","Ленинградская область","26373225","ЗАО \"Агрофирма  \"Выборжец\"","4703006839","470301001",null,null,"WARM"]
[30,"2610","Ленинградская область","26524163","ЗАО \"Интернешнл Пейпер\"","4704012472","470401001",null,null,"WARM"]
[31,"2610","Ленинградская область","26373235","ЗАО \"Каменногорское карьероуправление\"","4704002227","470401001",null,null,"WARM"]
[32,"2610","Ленинградская область","28828779","ЗАО \"Крионорд\"","7825332183","781001001","20-11-2014 00:00:00",null,"WARM"]
[33,"2610","Ленинградская область","26319703","ЗАО \"СЗИПК\"","7819020549","471501001","09-04-1999 00:00:00",null,"WARM"]
[34,"2610","Ленинградская область","26561712","ЗАО \"Северное\"","7814054375","781401001",null,null,"WARM"]
[35,"2610","Ленинградская область","26373268","ЗАО \"Сосновоагропромтехника\"","4712002559","471201001",null,null,"WARM"]
[36,"2610","Ленинградская область","26373242","ЗАО \"Термо-Лайн\"","4704052517","470401001",null,null,"WARM"]
[37,"2610","Ленинградская область","27331943","ИП Бушин И.В.","780520554728","отсутствует",null,null,"WARM"]
[38,"2610","Ленинградская область","26523738","ИФ РАН","7801022898","780101001","09-06-2010 00:00:00",null,"WARM"]
[39,"2610","Ленинградская область","27851016","ЛОГП \"Гатчинское дорожное ремонтно-строительное управление\"","4719002004","471090100",null,null,"WARM"]
[40,"2610","Ленинградская область","26561751","МП \"Агалатово-Сервис\"","4703087267","470301001",null,null,"WARM"]
[41,"2610","Ленинградская область","26561667","МП \"Жилищное хозяйство\"","4708001129","470801001",null,null,"WARM"]
[42,"2610","Ленинградская область","26640400","МП \"Северное ремонтно-эксплуатационное предприятие\"","4703064012","470301001",null,null,"WARM"]
[43,"2610","Ленинградская область","26638805","МП \"ТЭКК\"","4703117909","470301001","25-10-2013 00:00:00",null,"WARM"]
[44,"2610","Ленинградская область","28813153","МП \"ТеплоРесурс\" МО Кузнечнинское ГП","4712025919","471201001","16-09-2014 00:00:00",null,"WARM"]
[45,"2610","Ленинградская область","28504079","МП МО город Коммунар \"ЖКС\"","4705062476","470501001","30-04-2013 00:00:00",null,"WARM"]
[46,"2610","Ленинградская область","28284366","МРФ \"Северо-Запад\" ПАО \"Ростелеком\"","7707049388","784243001",null,null,"WARM"]
[47,"2610","Ленинградская область","27883622","МУКП \"Свердловские коммунальные системы\"","4703128682","470301001",null,null,"WARM"]
[48,"2610","Ленинградская область","26638809","МУП \"Бугровские тепловые сети\"","4703103575","470301001",null,null,"WARM"]
[49,"2610","Ленинградская область","30869222","МУП \"ВОДОКАНАЛ \"ГОНЧАРОВСКИЙ\" ВР ЛО","4704100866","470401001","06-12-2016 00:00:00",null,"WARM"]
[50,"2610","Ленинградская область","26373257","МУП \"НазияКомСервис\"","4706027280","470601001",null,null,"WARM"]
[51,"2610","Ленинградская область","26373253","МУП \"ПриладожскЖКХ»","4706005311","470601001",null,null,"WARM"]
[52,"2610","Ленинградская область","26640632","МУП \"Романовские коммунальные системы\"","4703117955","470301001",null,null,"WARM"]
[53,"2610","Ленинградская область","27943060","МУП \"Северное Cияние\"","4706033397","470601001",null,null,"WARM"]
[54,"2610","Ленинградская область","26524169","МУП \"Тепловые сети\" г. Гатчина","4705014698","470502001",null,null,"WARM"]
[55,"2610","Ленинградская область","27222108","МУП \"Центр ЖКХ\"","4706031872","470601001","01-09-2011 00:00:00",null,"WARM"]
[56,"2610","Ленинградская область","28001460","МУП «Низино»","4720031916","472001001","25-12-2009 00:00:00",null,"WARM"]
[57,"2610","Ленинградская область","26524179","МУП ЖКХ \"Сиверский\"","4705030450","470501001","09-06-2010 00:00:00",null,"WARM"]
[58,"2610","Ленинградская область","26768264","МУП ПГП «КБ»","4711006504","471101001",null,null,"WARM"]
[59,"2610","Ленинградская область","26773425","МУП УЖКХ МО ВИЛЛОЗСКОЕ СП","4720024228","472001001",null,null,"WARM"]
[60,"2610","Ленинградская область","28136066","НЛРВПиС","7812024833","470602001","25-03-2013 00:00:00",null,"WARM"]
[61,"2610","Ленинградская область","26639730","ОАО \"Всеволожские тепловые сети\"","4703096470","470301001",null,null,"WARM"]
[62,"2610","Ленинградская область","26380458","ОАО \"Завод Сланцы\"","4713000931","471301001",null,null,"WARM"]
[63,"2610","Ленинградская область","26373240","ОАО \"Птицефабрика Ударник\"","4704083071","470401001",null,null,"WARM"]
[64,"2610","Ленинградская область","26814895","ОАО \"РЖД\" (Октябрьская дирекция по тепловодоснабжению - СП Центральной дирекции по тепловодоснабжению - филиала ОАО \"РЖД\")","7708503727","780445015","01-04-2011 00:00:00",null,"WARM"]
[65,"2610","Ленинградская область","26373304","ОАО \"Сясьский целлюлозно-бумажный комбинат\"","4718011856","470250002",null,null,"WARM"]
[66,"2610","Ленинградская область","26640411","ОАО \"Тепловые сети\" филиал  \"Волосовские коммунальные системы\"","4716024190","470543001",null,null,"WARM"]
[67,"2610","Ленинградская область","26524308","ОАО \"Тепловые сети\", г. Тосно","4716024190","471601001","09-06-2010 00:00:00",null,"WARM"]
[68,"2610","Ленинградская область","28078723","ОАО \"Терволовский лесной питомник\"","4705037350","470501001",null,null,"WARM"]
[69,"2610","Ленинградская область","26373290","ОАО \"УЖКХ\" (Тихвинского района)","4715014471","471501001",null,null,"WARM"]
[70,"2610","Ленинградская область","26524171","ОАО \"Узор\"","4719002999","470501001",null,null,"WARM"]
[71,"2610","Ленинградская область","26373243","ОАО \"Управляющая компания по ЖКХ\"","4704061945","470401001",null,null,"WARM"]
[72,"2610","Ленинградская область","28261957","ОАО \"Усть-Лужский Контейнерный Терминал\"","4707013562","470707001","26-08-2013 00:00:00",null,"WARM"]
[73,"2610","Ленинградская область","26523713","ООО  \"БазэлЦемент-Пикалево\"","4715030610","471501001","09-06-2010 00:00:00",null,"WARM"]
[74,"2610","Ленинградская область","28877960","ООО \" УК \"СпецМонтаж 24\"","7841398551","784101001",null,null,"WARM"]
[75,"2610","Ленинградская область","28148752","ООО \"АКВАТЕРМ\"","4707032565","470701001",null,null,"WARM"]
[76,"2610","Ленинградская область","26640553","ООО \"Аква Норд-Вест\"","7801432887","780101001",null,null,"WARM"]
[77,"2610","Ленинградская область","30389240","ООО \"БАЗИС-ЭНЕРГО\"","7801474904","780101001","12-11-2015 00:00:00",null,"WARM"]
[78,"2610","Ленинградская область","28274744","ООО \"БИОТЕПЛОСНАБ\"","7811553714","471101001","07-10-2013 00:00:00",null,"WARM"]
[79,"2610","Ленинградская область","30847189","ООО \"Балтийский Дом\"","7802160435","781401001","25-10-2016 00:00:00",null,"WARM"]
[80,"2610","Ленинградская область","26524282","ООО \"Биотеплоснаб\"","4712123698","471201001","09-06-2010 00:00:00",null,"WARM"]
[81,"2610","Ленинградская область","30850125","ООО \"Бис Мелиор Трейд\"","4703144194","470301001","07-11-2016 00:00:00",null,"WARM"]
[82,"2610","Ленинградская область","28421985","ООО \"БокситогорскТеплоРесурс\"","4715028280","471501001","25-10-2013 00:00:00",null,"WARM"]
[83,"2610","Ленинградская область","28545782","ООО \"ВОДОКАНАЛ\"","4703137398","470301001","19-06-2014 00:00:00",null,"WARM"]
[84,"2610","Ленинградская область","26380445","ООО \"Водоканал\"","4711008759","471101001",null,null,"WARM"]
[85,"2610","Ленинградская область","27677580","ООО \"Выборгская лесопромышленная корпорация\"","4704087728","470450001","16-04-2012 00:00:00",null,"WARM"]
[86,"2610","Ленинградская область","28048642","ООО \"ГРАНД\"","4714017430","472601001",null,null,"WARM"]
[87,"2610","Ленинградская область","27883546","ООО \"ГТМ - Теплосервис\"","7810496527","780501001",null,null,"WARM"]
[88,"2610","Ленинградская область","29649769","ООО \"Дубровская ТЭЦ\"","4706036863","470601001",null,null,"WARM"]
[89,"2610","Ленинградская область","30906125","ООО \"ЖилКомТеплоЭнерго\"","4712023541","471201001",null,null,"WARM"]
[90,"2610","Ленинградская область","28932418","ООО \"Жилсервис\"","7843305143","470301001","23-12-2014 00:00:00",null,"WARM"]
[91,"2610","Ленинградская область","30371603","ООО \"ИЭК\"","4725001841","472501001",null,null,"WARM"]
[92,"2610","Ленинградская область","30989185","ООО \"Колтушские тепловые сети\"","4703150102","470301001",null,null,"WARM"]
[93,"2610","Ленинградская область","26524185","ООО \"Коммун Энерго\"","4707021122","470701001","09-06-2010 00:00:00",null,"WARM"]
[94,"2610","Ленинградская область","28795099","ООО \"Ландшафт ЭКО\"","4712023196","471201001",null,null,"WARM"]
[95,"2610","Ленинградская область","28016967","ООО \"Лемэк\"","7801213324","472501001","07-03-2012 00:00:00",null,"WARM"]
[96,"2610","Ленинградская область","28048616","ООО \"Леноблтеплоснаб\"","7811527520","781101001",null,null,"WARM"]
[97,"2610","Ленинградская область","27850826","ООО \"Лужское тепло\"","4710032029","471001001","30-07-2012 00:00:00",null,"WARM"]
[98,"2610","Ленинградская область","28155588","ООО \"Мир Техники\"","7810034240","782001001","18-06-2013 00:00:00",null,"WARM"]
[99,"2610","Ленинградская область","28877938","ООО \"МонтажСтрой\"","7840323602","781301001",null,null,"WARM"]
[100,"2610","Ленинградская область","28545761","ООО \"НТЦ \"Энергия\"","4705052118","470501001","24-06-2015 00:00:00",null,"WARM"]
[101,"2610","Ленинградская область","28968332","ООО \"Новая Водная Ассоциация\"","7801426040","780101001","18-05-2015 00:00:00",null,"WARM"]
[102,"2610","Ленинградская область","28829716","ООО \"ОблСервис\"","4712024087","471201001",null,null,"WARM"]
[103,"2610","Ленинградская область","26375635","ООО \"Ольшаники\"","7801079076","470401001",null,null,"WARM"]
[104,"2610","Ленинградская область","28829326","ООО \"ПАРИТЕТЪ\"","4712026119","471201001",null,null,"WARM"]
[105,"2610","Ленинградская область","28447219","ООО \"ПРОДЭКС-ЭС\"","7810836981","781001001","17-08-2011 00:00:00",null,"WARM"]
[106,"2610","Ленинградская область","27920896","ООО \"ПТЭСК\"","4706033100","470601001",null,null,"WARM"]
[107,"2610","Ленинградская область","30344093","ООО \"Паритет\"","4712026060","471201001","29-09-2015 00:00:00",null,"WARM"]
[108,"2610","Ленинградская область","26422017","ООО \"Петербургтеплоэнерго\"","7838024362","783450001",null,null,"WARM"]
[109,"2610","Ленинградская область","28489933","ООО \"Полар Инвест\"","7806104671","470301001","03-03-2000 00:00:00",null,"WARM"]
[110,"2610","Ленинградская область","28454795","ООО \"Приладожский Теплоснаб\"","4706035267","470601001","24-12-2013 00:00:00",null,"WARM"]
[111,"2610","Ленинградская область","26524253","ООО \"Промэнерго\"","4706016137","470601001","09-06-2010 00:00:00",null,"WARM"]
[112,"2610","Ленинградская область","28274778","ООО \"Ресурс\"","4711012515","471101001","07-10-2013 00:00:00",null,"WARM"]
[113,"2610","Ленинградская область","26813882","ООО \"С-КЛАД\"","7806358411","470301001",null,null,"WARM"]
[114,"2610","Ленинградская область","26640635","ООО \"СМЭУ Заневка\"","4703116542","470301001",null,null,"WARM"]
[115,"2610","Ленинградская область","30940618","ООО \"СТЭК\"","4703142768","470301001","08-12-2014 00:00:00",null,"WARM"]
[116,"2610","Ленинградская область","26799802","ООО \"Светогорское жилищно-коммунальное хозяйство\"","4704026517","470401001",null,null,"WARM"]
[117,"2610","Ленинградская область","28951581","ООО \"Сланцы\"","0276144176","470701001","01-04-2015 00:00:00",null,"WARM"]
[118,"2610","Ленинградская область","27774476","ООО \"Сосновский деревообрабатывающий завод\"","4712128738","471201001",null,null,"WARM"]
[119,"2610","Ленинградская область","28511826","ООО \"ТЕПЛОЭНЕРГО\"","7802853013","780101001",null,null,"WARM"]
[120,"2610","Ленинградская область","31075334","ООО \"ТЕРМО-ЛАЙН\"","4704103465","470401001",null,null,"WARM"]
[121,"2610","Ленинградская область","30363291","ООО \"ТК \"Мурино\"","7813559373","781301001",null,null,"WARM"]
[122,"2610","Ленинградская область","28136027","ООО \"Твердое топливо\"","7813422900","781301001","25-03-2013 00:00:00",null,"WARM"]
[123,"2610","Ленинградская область","30370326","ООО \"Тепло Сервис\"","4703137736","470301001","27-11-2015 00:00:00",null,"WARM"]
[124,"2610","Ленинградская область","28795051","ООО \"Тепло-Сервис\"","7811494554","471201001",null,null,"WARM"]
[125,"2610","Ленинградская область","28272648","ООО \"Тепловые Системы\"","7810450755","781001001","30-09-2013 00:00:00",null,"WARM"]
[126,"2610","Ленинградская область","28506998","ООО \"Теплодом\"","4703130547","781301001",null,null,"WARM"]
[127,"2610","Ленинградская область","26467459","ООО \"Теплострой плюс\"","7842322869","784201001",null,null,"WARM"]
[128,"2610","Ленинградская область","27061101","ООО \"Тихвин Дом\"","4715024568","471501001","22-12-2010 00:00:00",null,"WARM"]
[129,"2610","Ленинградская область","30917818","ООО \"Толмачевский завод ЖБ и МК\"","4710013019","471001001",null,null,"WARM"]
[130,"2610","Ленинградская область","28829108","ООО \"Транснефть-Порт Усть-Луга\"","4707021059","470701001",null,null,"WARM"]
[131,"2610","Ленинградская область","28175609","ООО \"Управляющая компания\"Коммунальные сети\"","4707026836","470701001","05-07-2013 00:00:00",null,"WARM"]
[132,"2610","Ленинградская область","26523754","ООО \"Флагман\"","7805222344","470301001","09-06-2010 00:00:00",null,"WARM"]
[133,"2610","Ленинградская область","30989338","ООО \"ЭКОТЕХНОЛОГИЯ\"","4712027955","471201001",null,null,"WARM"]
[134,"2610","Ленинградская область","28490320","ООО \"ЭЛСО-ЭГМ\"","7813561990","781301001","06-03-2014 00:00:00",null,"WARM"]
[135,"2610","Ленинградская область","26648562","ООО \"Энерго-Ресурс\"","4703108005","470301001",null,null,"WARM"]
[136,"2610","Ленинградская область","28979613","ООО \"ЭнергоИнвест\"","7841378040","780201001",null,null,"WARM"]
[137,"2610","Ленинградская область","27517472","ООО \"Энергогазмонтаж\"","7806119950","781301001",null,null,"WARM"]
[138,"2610","Ленинградская область","26361112","ООО \"Энергопромсервис\"","7811141414","781101001",null,null,"WARM"]
[139,"2610","Ленинградская область","30870466","ООО «Ленжилэксплуатация»","7810764455","781001001","21-10-2013 00:00:00",null,"WARM"]
[140,"2610","Ленинградская область","27630757","ООО «Промэнерго»","7839320364","783901001",null,null,"WARM"]
[141,"2610","Ленинградская область","27883558","ООО «ТК Северная»","4703123451","470301001",null,null,"WARM"]
[142,"2610","Ленинградская область","26561655","ООО «ТСК»","4703125360","470301001",null,null,"WARM"]
[143,"2610","Ленинградская область","27549588","ООО «Хаккапелиитта Вилладж»","4703093479","470301001",null,null,"WARM"]
[144,"2610","Ленинградская область","30872572","ООО «Энергия»","7813259980","781301001","06-09-2016 00:00:00",null,"WARM"]
[145,"2610","Ленинградская область","27566956","ООО «Энергоинвест»","4716026007","784201001",null,null,"WARM"]
[146,"2610","Ленинградская область","31007537","ООО УК \"Новоантропшино\"","4705063960","470501001",null,null,"WARM"]
[147,"2610","Ленинградская область","26526809","ООО Управляющая компания ''Оазис''","4712128456","471201001","09-06-2010 00:00:00",null,"WARM"]
[148,"2610","Ленинградская область","26640606","Обособленное подразделение ООО \"ФПГ \"РОССТРО - ЛФК\"","7811461140","471645001",null,null,"WARM"]
[149,"2610","Ленинградская область","26322152","ПАО \"Ленэнерго\"","7803002209","781001001",null,null,"WARM"]
[150,"2610","Ленинградская область","26515797","ПАО \"ОГК-2\" филиал Киришская ГРЭС","2607018122","471543001",null,null,"WARM"]
[151,"2610","Ленинградская область","26524249","ПАО \"Павловский завод\"","4706002529","470601001","09-06-2010 00:00:00",null,"WARM"]
[152,"2610","Ленинградская область","26539356","ПАО \"ТГК-1\" филиал \"Невский\"","7841312071","780102001",null,null,"WARM"]
[153,"2610","Ленинградская область","26524280","ПАО \"ТС\"","4712040346","471201001","09-06-2010 00:00:00",null,"WARM"]
[154,"2610","Ленинградская область","26373261","ПАО \"Толмачевский завод ЖБ и МК\"","4710000348","471001001",null,null,"WARM"]
[155,"2610","Ленинградская область","30955687","ПУ ФСБ России по г.Санкт-Петербургу и Ленинградской области","7842317080","784201001",null,null,"WARM"]
[156,"2610","Ленинградская область","26653815","СЗПК-филиал ОАО \"ЭЛТЕЗА\"","7716523950","771601001",null,null,"WARM"]
[157,"2610","Ленинградская область","26583421","СМУП \"ТСП\"","4714014006","472601001",null,null,"WARM"]
[158,"2610","Ленинградская область","26524175","ФГБУ \"ПИЯФ\"","4705001850","470501001",null,null,"WARM"]
[159,"2610","Ленинградская область","26319697","ФГУП \"НИТИ им. А.П. Александрова\"","4714000067","472650001","22-03-1994 00:00:00",null,"WARM"]
[160,"2610","Ленинградская область","28977645","ФГУП \"Росморпорт\"","7702352454","770701001","15-05-2003 00:00:00",null,"WARM"]
[161,"2610","Ленинградская область","26524173","ФГУП ПЭКП НИЦ \"Курчатовский институт\"","4705014183","470501001",null,null,"WARM"]
[162,"2610","Ленинградская область","26373300","ФКУ \"Исправительная колония №3 УФСИН России по г. СПб и ЛО\"","4716003610","471601001",null,null,"WARM"]
[163,"2610","Ленинградская область","26373296","ФКУ ИК-2 УФСИН России по С-Пб и ЛО","4716000986","471601001",null,null,"WARM"]
[164,"2610","Ленинградская область","28812394","Филиал АО «Газпром теплоэнерго» в Ленинградской области","5003046281","471043001","10-09-2014 00:00:00",null,"WARM"]
[165,"2610","Ленинградская область","30941480","Филиал ФГБУ \"ЦЖКУ\" Минобороны России по ЗВО","7729314745","784243001",null,null,"WARM"]

{"sheet":"modClassifierValidate","index":36,"n_rows":0,"n_cols":0,"rows_kept":0,"cut":false,"hidden":true,"merged":[]}

{"sheet":"modHyp","index":37,"n_rows":0,"n_cols":0,"rows_kept":0,"cut":false,"hidden":true,"merged":[]}

{"sheet":"modfrmDateChoose","index":38,"n_rows":0,"n_cols":0,"rows_kept":0,"cut":false,"hidden":true,"merged":[]}

{"sheet":"modComm","index":39,"n_rows":0,"n_cols":0,"rows_kept":0,"cut":false,"hidden":true,"merged":[]}

{"sheet":"modThisWorkbook","index":40,"n_rows":0,"n_cols":0,"rows_kept":0,"cut":false,"hidden":true,"merged":[]}

{"sheet":"REESTR_MO","index":41,"n_rows":2,"n_cols":4,"rows_kept":2,"cut":false,"hidden":true,"merged":[]}
["№","МР","МО","МО_ОКТМО"]
[1,"Кировский муниципальный район","Мгинское","41625154"]

{"sheet":"modfrmReestrMR","index":42,"n_rows":0,"n_cols":0,"rows_kept":0,"cut":false,"hidden":true,"merged":[]}

{"sheet":"modServiceModule","index":43,"n_rows":0,"n_cols":0,"rows_kept":0,"cut":false,"hidden":true,"merged":[]}

{"sheet":"modfrmCheckUpdates","index":44,"n_rows":0,"n_cols":0,"rows_kept":0,"cut":false,"hidden":true,"merged":[]}

{"sheet":"REESTR_DS","index":45,"n_rows":5,"n_cols":2,"rows_kept":5,"cut":false,"hidden":true,"merged":[]}
[]
[]
[null,"Кировский муниципальный район, Мгинское (41625154);"]
[null,"описание 2"]
[null,"Добавить "]

{"sheet":"REESTR_CHS","index":46,"n_rows":0,"n_cols":0,"rows_kept":0,"cut":false,"hidden":true,"merged":[]}

{"sheet":"REESTR_LINK","index":47,"n_rows":2,"n_cols":3,"rows_kept":2,"cut":false,"hidden":true,"merged":[]}
["ID","LINK_NAME","REGION"]
[64277733,"https://tarif.lenreg.ru/disclo/get_file?p_guid=????????-????-????-????-????????????","Ленинградская область"]